[Event "World Junior Chess Championship U20 2022"]
[White "Gurel, Ediz"]
[Black "Atanasov, Anthony"]
[WhiteFideId "44507356"]
[BlackFideId "2623897"]
[WhiteElo "2445"]
[BlackElo "2148"]
[Result "1-0"]
[Round "01"]
[TimeControl "5400+30"]
[Date "2022.10.12"]
[WhiteClock "0:47:49"]
[BlackClock "0:06:24"]

1. e4 {[%clk 1:30:51]}  e5 {[%clk 1:30:48]} 2. Nf3 {[%clk 1:31:16]}  Nf6 {[%clk 1:31:11]} 3. Nxe5 {[%clk 1:31:36]}  d6 {[%clk 1:31:31]} 4. Nf3 {[%clk 1:32:03]}  Nxe4 {[%clk 1:31:52]} 5. c4 {[%clk 1:32:25]}  Nc6 {[%clk 1:31:03]} 6. d3 {[%clk 1:32:40]}  Nf6 {[%clk 1:31:14]} 7. d4 {[%clk 1:33:05]}  Be7 {[%clk 1:28:48]} 8. d5 {[%clk 1:31:32]}  Ne5 {[%clk 1:28:58]} 9. Nxe5 {[%clk 1:22:09]}  dxe5 {[%clk 1:29:18]} 10. Be2 {[%clk 1:22:34]}  c6 {[%clk 1:21:13]} 11. Nc3 {[%clk 1:20:08]}  O-O {[%clk 1:17:43]} 12. O-O {[%clk 1:13:30]}  Bf5 {[%clk 1:13:04]} 13. dxc6 {[%clk 1:00:26]}  bxc6 {[%clk 1:10:21]} 14. Be3 {[%clk 0:54:21]}  Qc7 {[%clk 1:07:55]} 15. h3 {[%clk 0:48:07]}  Rfd8 {[%clk 1:00:08]} 16. Qc1 {[%clk 0:47:20]}  a5 {[%clk 0:53:05]} 17. Na4 {[%clk 0:42:59]}  Qb8 {[%clk 0:36:52]} 18. Bb6 {[%clk 0:39:45]}  Rd7 {[%clk 0:32:50]} 19. Qe3 {[%clk 0:37:06]}  e4 {[%clk 0:25:39]} 20. Bc5 {[%clk 0:35:56]}  Bxc5 {[%clk 0:14:31]} 21. Qxc5 {[%clk 0:30:16]}  Rd2 {[%clk 0:14:09]} 22. Qe3 {[%clk 0:30:20]}  Qb4 {[%clk 0:12:26]} 23. a3 {[%clk 0:30:27]}  Qd6 {[%clk 0:12:51]} 24. Rfd1 {[%clk 0:30:38]}  Rxd1+ {[%clk 0:12:12]} 25. Rxd1 {[%clk 0:31:07]}  Qe7 {[%clk 0:08:38]} 26. Qc5 {[%clk 0:26:59]}  Qxc5 {[%clk 0:08:38]} 27. Nxc5 {[%clk 0:27:27]}  Kf8 {[%clk 0:07:49]} 28. g4 {[%clk 0:26:52]}  Be6 {[%clk 0:06:59]} 29. Rd6 {[%clk 0:25:34]}  Rc8 {[%clk 0:04:56]} 30. g5 {[%clk 0:25:00]}  Ke7 {[%clk 0:03:06]} 31. Rd4 {[%clk 0:25:22]}  Ne8 {[%clk 0:02:46]} 32. Nxe6 {[%clk 0:24:41]}  fxe6 {[%clk 0:03:05]} 33. Rxe4 {[%clk 0:25:08]}  Rb8 {[%clk 0:02:50]} 34. Bg4 {[%clk 0:25:28]}  Nc7 {[%clk 0:03:00]} 35. Re2 {[%clk 0:23:57]}  c5 {[%clk 0:02:07]} 36. f4 {[%clk 0:23:48]}  g6 {[%clk 0:02:36]} 37. f5 {[%clk 0:22:57]}  gxf5 {[%clk 0:01:33]} 38. Bxf5 {[%clk 0:23:25]}  Rg8 {[%clk 0:01:02]} 39. h4 {[%clk 0:23:50]}  h6 {[%clk 0:00:38]} 40. g6 {[%clk 0:24:14]}  h5 {[%clk 0:00:40]} 41. Bc2 {[%clk 0:24:25]}  Kd6 {[%clk 0:00:34]} 42. Kh2 {[%clk 0:21:31]}  Rf8 {[%clk 0:24:35]} 43. Rg2 {[%clk 0:46:57]}  Ne8 {[%clk 0:23:15]} 44. g7 {[%clk 0:47:19]}  Rg8 {[%clk 0:22:55]} 45. Bg6 {[%clk 0:47:47]}  Ke7 {[%clk 0:20:14]} 46. Bxe8 {[%clk 0:48:02]}  Kxe8 {[%clk 0:20:41]} 47. Rg5 {[%clk 0:48:27]}  Kf7 {[%clk 0:20:14]} 48. Rxc5 {[%clk 0:47:38]}  Rb8 {[%clk 0:14:22]} 49. Rb5 {[%clk 0:48:03]}  Rd8 {[%clk 0:13:10]} 50. Rb7+ {[%clk 0:47:26]}  Kg8 {[%clk 0:13:38]} 51. b4 {[%clk 0:45:47]}  Rd2+ {[%clk 0:12:12]} 52. Kg1 {[%clk 0:45:58]}  axb4 {[%clk 0:10:43]} 53. axb4 {[%clk 0:46:11]}  Rc2 {[%clk 0:10:28]} 54. c5 {[%clk 0:46:35]}  e5 {[%clk 0:10:28]} 55. Rc7 {[%clk 0:46:38]}  Rb2 {[%clk 0:08:16]} 56. c6 {[%clk 0:46:55]}  Rxb4 {[%clk 0:07:11]} 57. Rd7 {[%clk 0:47:21]}  Rc4 {[%clk 0:06:24]} 58. c7 {[%clk 0:47:49]} 1-0


[Site "http://www.chessbomb.com"]

[Event "World Junior Chess Championship U20 2022"]
[White "Cotic, Borna"]
[Black "Kozak, Antoni"]
[WhiteFideId "14542307"]
[BlackFideId "21832030"]
[WhiteElo "2133"]
[BlackElo "2440"]
[Result "0-1"]
[Round "01"]
[TimeControl "5400+30"]
[Date "2022.10.12"]
[WhiteClock "0:18:21"]
[BlackClock "0:45:03"]

1. e4 {[%clk 1:30:51]}  c5 {[%clk 1:30:53]} 2. Nf3 {[%clk 1:31:06]}  d6 {[%clk 1:31:19]} 3. Bb5+ {[%clk 1:31:17]}  Nd7 {[%clk 1:31:44]} 4. d4 {[%clk 1:31:31]}  cxd4 {[%clk 1:32:11]} 5. Nxd4 {[%clk 1:31:55]}  Nf6 {[%clk 1:29:36]} 6. O-O {[%clk 1:32:12]}  g6 {[%clk 1:19:40]} 7. Re1 {[%clk 1:32:33]}  Bg7 {[%clk 1:19:12]} 8. Bf1 {[%clk 1:32:37]}  Nc5 {[%clk 1:16:14]} 9. f3 {[%clk 1:32:54]}  O-O {[%clk 1:04:13]} 10. c3 {[%clk 1:21:15]}  e5 {[%clk 1:00:51]} 11. Nb5 {[%clk 1:16:09]}  d5 {[%clk 1:01:01]} 12. Be3 {[%clk 1:07:57]}  b6 {[%clk 1:00:12]} 13. exd5 {[%clk 1:01:03]}  Nxd5 {[%clk 1:00:35]} 14. Bxc5 {[%clk 0:58:29]}  bxc5 {[%clk 1:00:25]} 15. c4 {[%clk 0:58:53]}  Nb4 {[%clk 0:57:40]} 16. Qxd8 {[%clk 0:58:51]}  Rxd8 {[%clk 0:58:06]} 17. N1c3 {[%clk 0:59:07]}  Nc2 {[%clk 0:52:53]} 18. Rad1 {[%clk 0:51:33]}  Bd7 {[%clk 0:53:09]} 19. Re2 {[%clk 0:51:05]}  Nd4 {[%clk 0:53:34]} 20. Nxd4 {[%clk 0:50:27]}  cxd4 {[%clk 0:53:57]} 21. Nd5 {[%clk 0:50:42]}  f5 {[%clk 0:47:10]} 22. Ree1 {[%clk 0:50:16]}  Kf7 {[%clk 0:45:57]} 23. Bd3 {[%clk 0:49:24]}  Rac8 {[%clk 0:44:31]} 24. Re2 {[%clk 0:48:55]}  Be6 {[%clk 0:44:24]} 25. Rc2 {[%clk 0:47:28]}  Bh6 {[%clk 0:41:33]} 26. Kf1 {[%clk 0:41:49]}  Kf8 {[%clk 0:39:01]} 27. Ke2 {[%clk 0:39:20]}  Kg7 {[%clk 0:38:55]} 28. Re1 {[%clk 0:38:39]}  Bxd5 {[%clk 0:39:06]} 29. cxd5 {[%clk 0:39:02]}  Rxc2+ {[%clk 0:39:35]} 30. Bxc2 {[%clk 0:39:24]}  Rxd5 {[%clk 0:40:03]} 31. Kd3 {[%clk 0:39:32]}  Kf6 {[%clk 0:40:20]} 32. Bb3 {[%clk 0:37:13]}  Rc5 {[%clk 0:40:24]} 33. Bc4 {[%clk 0:37:13]}  Be3 {[%clk 0:40:46]} 34. Bb3 {[%clk 0:31:40]}  h5 {[%clk 0:41:11]} 35. Rf1 {[%clk 0:25:27]}  h4 {[%clk 0:41:09]} 36. Ba4 {[%clk 0:19:03]}  Bf4 {[%clk 0:41:25]} 37. Rh1 {[%clk 0:18:06]}  Bc1 {[%clk 0:41:36]} 38. b4 {[%clk 0:17:01]}  Rc3+ {[%clk 0:42:02]} 39. Ke2 {[%clk 0:17:28]}  e4 {[%clk 0:41:55]} 40. fxe4 {[%clk 0:17:43]}  fxe4 {[%clk 0:42:22]} 41. Rf1+ {[%clk 0:18:04]}  Ke5 {[%clk 0:42:46]} 42. Rf8 {[%clk 0:18:10]}  d3+ {[%clk 0:43:12]} 43. Kd1 {[%clk 0:17:57]}  Bg5 {[%clk 0:43:29]} 44. Ke1 {[%clk 0:17:55]}  e3 {[%clk 0:43:54]} 45. Re8+ {[%clk 0:18:07]}  Kd4 {[%clk 0:44:19]} 46. Re6 {[%clk 0:17:41]}  Rc1+ {[%clk 0:44:39]} 47. Bd1 {[%clk 0:18:03]}  e2 {[%clk 0:44:52]} 48. Rd6+ {[%clk 0:18:21]}  Ke4 {[%clk 0:45:03]} 0-1


[Site "http://www.chessbomb.com"]

[Event "World Junior Chess Championship U20 2022"]
[White "Baenziger, Fabian"]
[Black "Sitbon, Itay"]
[WhiteFideId "1330110"]
[BlackFideId "2820706"]
[WhiteElo "2439"]
[BlackElo "2133"]
[Result "1-0"]
[Round "01"]
[TimeControl "5400+30"]
[Date "2022.10.12"]
[WhiteClock "0:08:08"]
[BlackClock "0:24:55"]

1. d4 {[%clk 1:30:54]}  Nf6 {[%clk 1:30:58]} 2. c4 {[%clk 1:31:05]}  a6 {[%clk 1:31:23]} 3. Nc3 {[%clk 1:25:43]}  c5 {[%clk 1:31:46]} 4. d5 {[%clk 1:24:00]}  b5 {[%clk 1:32:09]} 5. a3 {[%clk 1:24:27]}  g6 {[%clk 1:26:39]} 6. e4 {[%clk 1:21:53]}  d6 {[%clk 1:26:45]} 7. cxb5 {[%clk 1:18:55]}  Bg7 {[%clk 1:26:49]} 8. Nf3 {[%clk 1:18:06]}  O-O {[%clk 1:26:49]} 9. bxa6 {[%clk 1:17:09]}  e6 {[%clk 1:18:46]} 10. Be2 {[%clk 1:04:13]}  Nxa6 {[%clk 1:17:29]} 11. O-O {[%clk 1:04:00]}  exd5 {[%clk 1:15:19]} 12. exd5 {[%clk 1:03:58]}  Re8 {[%clk 1:15:19]} 13. Re1 {[%clk 0:41:43]}  Ne4 {[%clk 1:13:29]} 14. Bd2 {[%clk 0:38:30]}  Nxd2 {[%clk 1:09:51]} 15. Qxd2 {[%clk 0:38:36]}  Bg4 {[%clk 1:06:11]} 16. h3 {[%clk 0:25:54]}  Bxf3 {[%clk 1:06:27]} 17. Bxf3 {[%clk 0:26:20]}  Qb6 {[%clk 1:02:08]} 18. Be2 {[%clk 0:21:47]}  Nc7 {[%clk 0:54:49]} 19. Bc4 {[%clk 0:21:43]}  Reb8 {[%clk 0:42:13]} 20. Rab1 {[%clk 0:21:07]}  Re8 {[%clk 0:39:51]} 21. Rbc1 {[%clk 0:19:15]}  Rab8 {[%clk 0:38:57]} 22. b3 {[%clk 0:14:10]}  Qa5 {[%clk 0:37:45]} 23. a4 {[%clk 0:14:30]}  Rxe1+ {[%clk 0:37:45]} 24. Qxe1 {[%clk 0:14:53]}  Re8 {[%clk 0:34:59]} 25. Qd2 {[%clk 0:15:01]}  Bd4 {[%clk 0:31:16]} 26. Rc2 {[%clk 0:07:11]}  Kg7 {[%clk 0:28:44]} 27. Ne2 {[%clk 0:07:28]}  Qxd2 {[%clk 0:29:01]} 28. Rxd2 {[%clk 0:07:55]}  Bf6 {[%clk 0:28:51]} 29. g3 {[%clk 0:06:51]}  Ra8 {[%clk 0:27:00]} 30. Kg2 {[%clk 0:06:44]}  Ne8 {[%clk 0:26:11]} 31. Bb5 {[%clk 0:03:11]}  Nc7 {[%clk 0:26:16]} 32. Bc4 {[%clk 0:03:14]}  Ne8 {[%clk 0:26:43]} 33. f4 {[%clk 0:03:37]}  Bd8 {[%clk 0:26:50]} 34. g4 {[%clk 0:01:59]}  Ba5 {[%clk 0:27:00]} 35. Rd3 {[%clk 0:02:21]}  Nc7 {[%clk 0:24:48]} 36. Kf3 {[%clk 0:01:38]}  Re8 {[%clk 0:24:41]} 37. Ng3 {[%clk 0:01:47]}  Rd8 {[%clk 0:20:12]} 38. Re3 {[%clk 0:01:33]}  Re8 {[%clk 0:19:41]} 39. Ne4 {[%clk 0:01:47]}  Rd8 {[%clk 0:19:12]} 40. g5 {[%clk 0:01:36]}  h6 {[%clk 0:16:25]} 41. h4 {[%clk 0:23:43]}  hxg5 {[%clk 0:46:37]} 42. hxg5 {[%clk 0:23:14]}  Kf8 {[%clk 0:46:13]} 43. Nf6 {[%clk 0:16:34]}  Ne8 {[%clk 0:44:48]} 44. Bb5 {[%clk 0:16:12]}  Ng7 {[%clk 0:39:19]} 45. Nd7+ {[%clk 0:16:01]}  Kg8 {[%clk 0:39:29]} 46. Re7 {[%clk 0:16:10]}  Bc3 {[%clk 0:35:32]} 47. Bd3 {[%clk 0:11:45]}  Bd2 {[%clk 0:33:21]} 48. Kg4 {[%clk 0:10:02]}  Bc3 {[%clk 0:31:33]} 49. f5 {[%clk 0:07:51]}  gxf5+ {[%clk 0:31:30]} 50. Bxf5 {[%clk 0:08:17]}  Bd4 {[%clk 0:26:13]} 51. g6 {[%clk 0:07:48]}  fxg6 {[%clk 0:26:18]} 52. Bxg6 {[%clk 0:08:13]}  Ra8 {[%clk 0:26:23]} 53. Bf7+ {[%clk 0:08:09]}  Kh8 {[%clk 0:25:02]} 54. Re1 {[%clk 0:08:15]}  c4 {[%clk 0:25:19]} 55. bxc4 {[%clk 0:08:26]}  Rxa4 {[%clk 0:25:34]} 56. Rh1+ {[%clk 0:08:17]}  Nh5 {[%clk 0:26:02]} 57. Bxh5 {[%clk 0:07:03]}  Rxc4 {[%clk 0:26:17]} 58. Bg6+ {[%clk 0:06:52]}  Kg7 {[%clk 0:25:40]} 59. Kf5 {[%clk 0:07:12]}  Bb2 {[%clk 0:23:59]} 60. Rh7+ {[%clk 0:07:36]}  Kg8 {[%clk 0:24:28]} 61. Nf6+ {[%clk 0:07:35]}  Bxf6 {[%clk 0:24:46]} 62. Kxf6 {[%clk 0:08:01]}  Rc8 {[%clk 0:24:46]} 63. Rd7 {[%clk 0:07:29]}  Ra8 {[%clk 0:24:35]} 64. Bf7+ {[%clk 0:07:21]}  Kf8 {[%clk 0:24:55]} 65. Be6 {[%clk 0:07:44]}  Ke8 {[%clk 0:24:55]} 66. Rg7 {[%clk 0:08:08]} 1-0


[Site "http://www.chessbomb.com"]

[Event "World Junior Chess Championship U20 2022"]
[White "Urbani, Gabriel"]
[Black "Ghimpu, Samuel-Timotei"]
[WhiteFideId "2830138"]
[BlackFideId "1238175"]
[WhiteElo "2129"]
[BlackElo "2434"]
[Result "0-1"]
[Round "01"]
[TimeControl "5400+30"]
[Date "2022.10.12"]
[WhiteClock "0:27:47"]
[BlackClock "0:28:05"]

1. e4 {[%clk 1:30:49]}  c5 {[%clk 1:30:17]} 2. Nf3 {[%clk 1:31:08]}  e6 {[%clk 1:30:32]} 3. d4 {[%clk 1:31:25]}  cxd4 {[%clk 1:30:53]} 4. Nxd4 {[%clk 1:31:51]}  Nf6 {[%clk 1:30:57]} 5. Nc3 {[%clk 1:29:56]}  Nc6 {[%clk 1:31:00]} 6. a3 {[%clk 1:29:33]}  Be7 {[%clk 1:30:49]} 7. Be3 {[%clk 1:29:40]}  O-O {[%clk 1:31:01]} 8. Be2 {[%clk 1:29:18]}  d6 {[%clk 1:29:18]} 9. O-O {[%clk 1:28:31]}  e5 {[%clk 1:29:07]} 10. Nb3 {[%clk 1:20:43]}  Be6 {[%clk 1:28:34]} 11. f4 {[%clk 1:19:12]}  exf4 {[%clk 1:25:32]} 12. Bxf4 {[%clk 1:18:56]}  Rc8 {[%clk 1:24:59]} 13. Kh1 {[%clk 1:17:57]}  Re8 {[%clk 1:15:29]} 14. Nd4 {[%clk 1:14:51]}  Ne5 {[%clk 0:35:58]} 15. Nxe6 {[%clk 1:08:03]}  fxe6 {[%clk 0:36:20]} 16. Bxe5 {[%clk 0:56:03]}  dxe5 {[%clk 0:34:10]} 17. Bb5 {[%clk 0:54:14]}  Rf8 {[%clk 0:33:51]} 18. Qe2 {[%clk 0:53:16]}  Bc5 {[%clk 0:25:31]} 19. Bc4 {[%clk 0:49:03]}  Qe8 {[%clk 0:25:09]} 20. Rad1 {[%clk 0:44:22]}  a6 {[%clk 0:24:49]} 21. Nb1 {[%clk 0:39:51]}  h5 {[%clk 0:19:33]} 22. b4 {[%clk 0:33:56]}  Bd4 {[%clk 0:10:26]} 23. c3 {[%clk 0:33:32]}  Qc6 {[%clk 0:06:59]} 24. Bb3 {[%clk 0:24:44]}  Ba7 {[%clk 0:06:12]} 25. Nd2 {[%clk 0:24:24]}  Rce8 {[%clk 0:01:51]} 26. Rc1 {[%clk 0:20:09]}  Ng4 {[%clk 0:01:56]} 27. Nf3 {[%clk 0:19:52]}  Rf4 {[%clk 0:02:04]} 28. Ng5 {[%clk 0:03:33]}  Be3 {[%clk 0:02:17]} 29. Rxf4 {[%clk 0:02:16]}  Bxf4 {[%clk 0:02:34]} 30. Nxe6 {[%clk 0:02:35]}  Rxe6 {[%clk 0:02:49]} 31. Rf1 {[%clk 0:02:06]}  Kh7 {[%clk 0:02:27]} 32. Bxe6 {[%clk 0:02:04]}  Qxe6 {[%clk 0:02:51]} 33. g3 {[%clk 0:02:20]}  Bh6 {[%clk 0:02:59]} 34. Qf3 {[%clk 0:00:40]}  Qc6 {[%clk 0:00:39]} 35. Re1 {[%clk 0:00:31]}  Bd2 {[%clk 0:00:39]} 36. Re2 {[%clk 0:00:38]}  Qxc3 {[%clk 0:00:39]} 37. Qf5+ {[%clk 0:00:41]}  Kh6 {[%clk 0:00:58]} 38. Qe6+ {[%clk 0:00:43]}  Kh7 {[%clk 0:00:42]} 39. Qf5+ {[%clk 0:01:07]}  Kh6 {[%clk 0:01:07]} 40. Qe6+ {[%clk 0:01:35]}  Nf6 {[%clk 0:00:37]} 41. Rf2 {[%clk 0:01:36]}  Bg5 {[%clk 0:29:43]} 42. h4 {[%clk 0:30:16]}  Qe1+ {[%clk 0:29:35]} 43. Kg2 {[%clk 0:30:45]}  Qxe4+ {[%clk 0:29:50]} 44. Kh2 {[%clk 0:30:51]}  Kh7 {[%clk 0:28:23]} 45. Qf5+ {[%clk 0:27:24]}  Qxf5 {[%clk 0:27:51]} 46. Rxf5 {[%clk 0:27:47]}  Bc1 {[%clk 0:28:05]} 0-1


[Site "http://www.chessbomb.com"]

[Event "World Junior Chess Championship U20 2022"]
[White "Harshavardhan, G B"]
[Black "Gagic, Milan A"]
[WhiteFideId "25059009"]
[BlackFideId "979805"]
[WhiteElo "2433"]
[BlackElo "2125"]
[Result "1-0"]
[Round "01"]
[TimeControl "5400+30"]
[Date "2022.10.12"]
[WhiteClock "0:03:38"]
[BlackClock "0:01:43"]

1. e4 {[%clk 1:30:44]}  e6 {[%clk 1:30:39]} 2. d4 {[%clk 1:30:43]}  d5 {[%clk 1:31:01]} 3. Nc3 {[%clk 1:30:55]}  Nf6 {[%clk 1:31:18]} 4. e5 {[%clk 1:30:49]}  Nfd7 {[%clk 1:31:45]} 5. f4 {[%clk 1:31:07]}  c5 {[%clk 1:32:07]} 6. Nf3 {[%clk 1:31:28]}  Nc6 {[%clk 1:32:19]} 7. Be3 {[%clk 1:31:47]}  Qb6 {[%clk 1:31:32]} 8. Na4 {[%clk 1:24:31]}  Qa5+ {[%clk 1:31:32]} 9. c3 {[%clk 1:24:34]}  b6 {[%clk 1:31:30]} 10. Bd2 {[%clk 1:16:13]}  c4 {[%clk 1:30:31]} 11. b4 {[%clk 1:11:08]}  Nxb4 {[%clk 1:30:22]} 12. cxb4 {[%clk 1:07:14]}  Bxb4 {[%clk 1:30:48]} 13. Rc1 {[%clk 1:00:40]}  Bxd2+ {[%clk 1:22:35]} 14. Nxd2 {[%clk 1:00:44]}  b5 {[%clk 1:18:54]} 15. Nc3 {[%clk 0:59:21]}  b4 {[%clk 1:15:22]} 16. Nce4 {[%clk 0:57:21]}  O-O {[%clk 1:01:38]} 17. Nd6 {[%clk 0:51:16]}  Qxa2 {[%clk 0:55:10]} 18. Be2 {[%clk 0:36:35]}  Nb6 {[%clk 0:43:51]} 19. O-O {[%clk 0:26:26]}  b3 {[%clk 0:40:48]} 20. Nb1 {[%clk 0:19:30]}  Bd7 {[%clk 0:34:26]} 21. Rc3 {[%clk 0:14:38]}  Na4 {[%clk 0:16:38]} 22. Rh3 {[%clk 0:14:39]}  Qb2 {[%clk 0:16:48]} 23. Rf2 {[%clk 0:10:18]}  Qa1 {[%clk 0:16:55]} 24. Bf1 {[%clk 0:06:40]}  g6 {[%clk 0:16:41]} 25. Rh4 {[%clk 0:03:24]}  c3 {[%clk 0:11:12]} 26. f5 {[%clk 0:03:03]}  exf5 {[%clk 0:05:56]} 27. Qc1 {[%clk 0:03:25]}  h5 {[%clk 0:06:19]} 28. Rxh5 {[%clk 0:02:58]}  f4 {[%clk 0:04:46]} 29. Rxf4 {[%clk 0:01:55]}  gxh5 {[%clk 0:00:34]} 30. Rf6 {[%clk 0:02:06]}  Qxb1 {[%clk 0:00:41]} 31. Qg5+ {[%clk 0:02:21]}  Qg6 {[%clk 0:00:52]} 32. Rxg6+ {[%clk 0:02:43]}  fxg6 {[%clk 0:01:21]} 33. Qxg6+ {[%clk 0:03:03]}  Kh8 {[%clk 0:01:38]} 34. Bd3 {[%clk 0:03:24]}  Bf5 {[%clk 0:01:43]} 35. Nxf5 {[%clk 0:03:38]} 1-0


[Site "http://www.chessbomb.com"]

[Event "World Junior Chess Championship U20 2022"]
[White "Ballesteros Cardenas, Leonardo"]
[Black "Olsen, Filip Boe"]
[WhiteFideId "3428141"]
[BlackFideId "1440640"]
[WhiteElo "2121"]
[BlackElo "2433"]
[Result "1-0"]
[Round "01"]
[TimeControl "5400+30"]
[Date "2022.10.12"]
[WhiteClock "0:01:58"]
[BlackClock "0:12:16"]

1. d4 {[%clk 1:30:46]}  Nf6 {[%clk 1:30:48]} 2. c4 {[%clk 1:31:11]}  e6 {[%clk 1:31:04]} 3. Nc3 {[%clk 1:31:11]}  Bb4 {[%clk 1:31:23]} 4. e3 {[%clk 1:30:31]}  O-O {[%clk 1:31:41]} 5. Bd3 {[%clk 1:30:54]}  c5 {[%clk 1:31:53]} 6. Nf3 {[%clk 1:30:50]}  b6 {[%clk 1:32:07]} 7. a3 {[%clk 1:28:47]}  Bxc3+ {[%clk 1:32:06]} 8. bxc3 {[%clk 1:29:15]}  Bb7 {[%clk 1:30:25]} 9. O-O {[%clk 1:28:06]}  Ne4 {[%clk 1:29:22]} 10. Qc2 {[%clk 1:26:46]}  f5 {[%clk 1:29:36]} 11. Nd2 {[%clk 1:20:18]}  Nxd2 {[%clk 1:29:33]} 12. Bxd2 {[%clk 1:18:10]}  Nc6 {[%clk 1:29:32]} 13. Rad1 {[%clk 1:10:30]}  Rc8 {[%clk 1:23:29]} 14. f3 {[%clk 0:54:24]}  Na5 {[%clk 1:19:10]} 15. e4 {[%clk 0:46:50]}  fxe4 {[%clk 1:12:12]} 16. fxe4 {[%clk 0:46:21]}  Ba6 {[%clk 0:57:13]} 17. Rxf8+ {[%clk 0:43:57]}  Qxf8 {[%clk 0:56:36]} 18. Rf1 {[%clk 0:41:02]}  Qe7 {[%clk 0:56:00]} 19. e5 {[%clk 0:40:22]}  h6 {[%clk 0:53:48]} 20. Bxh6 {[%clk 0:26:02]}  gxh6 {[%clk 0:43:40]} 21. Rf6 {[%clk 0:24:11]}  Rf8 {[%clk 0:41:17]} 22. Bh7+ {[%clk 0:22:04]}  Kh8 {[%clk 0:39:13]} 23. Rxh6 {[%clk 0:21:12]}  Qg5 {[%clk 0:32:04]} 24. Rh3 {[%clk 0:20:31]}  Rf4 {[%clk 0:31:39]} 25. Bd3+ {[%clk 0:12:41]}  Kg8 {[%clk 0:30:59]} 26. Qe2 {[%clk 0:08:16]}  Rg4 {[%clk 0:20:16]} 27. Qf1 {[%clk 0:08:32]}  Rf4 {[%clk 0:17:59]} 28. Qe2 {[%clk 0:08:40]}  Kf8 {[%clk 0:15:20]} 29. Qe3 {[%clk 0:06:05]}  Bxc4 {[%clk 0:13:21]} 30. Rf3 {[%clk 0:05:39]}  Bxd3 {[%clk 0:08:47]} 31. Rxf4+ {[%clk 0:05:26]}  Bf5 {[%clk 0:09:01]} 32. dxc5 {[%clk 0:02:26]}  Ke8 {[%clk 0:07:27]} 33. cxb6 {[%clk 0:02:08]}  axb6 {[%clk 0:06:42]} 34. h4 {[%clk 0:02:20]}  Qg7 {[%clk 0:06:30]} 35. Rb4 {[%clk 0:01:53]}  Nc6 {[%clk 0:03:35]} 36. Rxb6 {[%clk 0:02:12]}  Nxe5 {[%clk 0:03:53]} 37. a4 {[%clk 0:01:42]}  Nc6 {[%clk 0:02:13]} 38. h5 {[%clk 0:00:34]}  Qg4 {[%clk 0:01:58]} 39. Qf3 {[%clk 0:00:32]}  Qxa4 {[%clk 0:01:58]} 40. h6 {[%clk 0:00:33]}  Qh4 {[%clk 0:01:03]} 41. Qe3 {[%clk 0:00:47]}  Qg4 {[%clk 0:26:23]} 42. Ra6 {[%clk 0:27:41]}  Be4 {[%clk 0:24:17]} 43. Ra2 {[%clk 0:24:23]}  Ne5 {[%clk 0:20:35]} 44. Re2 {[%clk 0:16:21]}  Nf3+ {[%clk 0:18:04]} 45. Kf1 {[%clk 0:15:52]}  Ng5 {[%clk 0:18:03]} 46. Qd4 {[%clk 0:14:27]}  Qh4 {[%clk 0:13:45]} 47. Qh8+ {[%clk 0:13:18]}  Ke7 {[%clk 0:14:04]} 48. Qg7+ {[%clk 0:12:45]}  Nf7 {[%clk 0:13:47]} 49. Rxe4 {[%clk 0:01:52]}  Qxe4 {[%clk 0:13:56]} 50. h7 {[%clk 0:02:21]}  Qh4 {[%clk 0:12:51]} 51. Ke2 {[%clk 0:01:51]}  Qf6 {[%clk 0:12:16]} 52. h8=Q {[%clk 0:01:58]} 1-0


[Site "http://www.chessbomb.com"]

[Event "World Junior Chess Championship U20 2022"]
[White "Moksh, Amit Doshi"]
[Black "Gov, Guy"]
[WhiteFideId "25064967"]
[BlackFideId "2820200"]
[WhiteElo "2430"]
[BlackElo "2121"]
[Result "1-0"]
[Round "01"]
[TimeControl "5400+30"]
[Date "2022.10.12"]
[WhiteClock "0:41:47"]
[BlackClock "0:20:24"]

1. d4 {[%clk 1:30:41]}  Nf6 {[%clk 1:30:57]} 2. c4 {[%clk 1:30:48]}  e6 {[%clk 1:31:23]} 3. Nf3 {[%clk 1:30:15]}  d5 {[%clk 1:31:48]} 4. Nc3 {[%clk 1:30:34]}  Nbd7 {[%clk 1:32:13]} 5. Qc2 {[%clk 1:28:00]}  dxc4 {[%clk 1:26:50]} 6. e4 {[%clk 1:27:53]}  Nb6 {[%clk 1:20:18]} 7. Be2 {[%clk 1:22:52]}  Bb4 {[%clk 1:09:34]} 8. O-O {[%clk 1:21:58]}  h6 {[%clk 1:07:44]} 9. Bf4 {[%clk 1:18:44]}  Bxc3 {[%clk 1:05:46]} 10. bxc3 {[%clk 1:18:35]}  O-O {[%clk 1:01:15]} 11. Ne5 {[%clk 1:18:29]}  Qe7 {[%clk 0:57:32]} 12. a4 {[%clk 1:16:11]}  Nfd7 {[%clk 0:57:55]} 13. a5 {[%clk 1:14:53]}  Nxe5 {[%clk 0:58:18]} 14. axb6 {[%clk 1:11:12]}  Ng6 {[%clk 0:57:48]} 15. Rxa7 {[%clk 1:08:25]}  Rxa7 {[%clk 0:55:33]} 16. bxa7 {[%clk 1:08:48]}  Qa3 {[%clk 0:55:58]} 17. Bxc7 {[%clk 1:08:50]}  Qxa7 {[%clk 0:56:20]} 18. Qb2 {[%clk 1:06:28]}  b5 {[%clk 0:51:25]} 19. Bd6 {[%clk 1:06:42]}  Rd8 {[%clk 0:51:48]} 20. Qxb5 {[%clk 1:05:15]}  Qb7 {[%clk 0:50:21]} 21. Qxb7 {[%clk 0:56:58]}  Bxb7 {[%clk 0:50:34]} 22. Bc5 {[%clk 0:56:48]}  Bxe4 {[%clk 0:50:29]} 23. Bxc4 {[%clk 0:55:59]}  Rb8 {[%clk 0:47:25]} 24. Re1 {[%clk 0:54:23]}  Bc6 {[%clk 0:45:37]} 25. f3 {[%clk 0:48:17]}  Rb2 {[%clk 0:45:12]} 26. Bf1 {[%clk 0:42:20]}  Nh4 {[%clk 0:39:33]} 27. Re2 {[%clk 0:41:49]}  Rb1 {[%clk 0:39:41]} 28. c4 {[%clk 0:41:47]}  Rd1 {[%clk 0:36:33]} 29. Ra2 {[%clk 0:39:13]}  Nf5 {[%clk 0:34:49]} 30. Kf2 {[%clk 0:39:35]}  Nxd4 {[%clk 0:33:30]} 31. Ra6 {[%clk 0:39:59]}  Bd7 {[%clk 0:23:18]} 32. Rd6 {[%clk 0:40:15]}  Nb3 {[%clk 0:23:45]} 33. Rxd1 {[%clk 0:40:34]}  Nxc5 {[%clk 0:24:09]} 34. Ke3 {[%clk 0:40:55]}  Kf8 {[%clk 0:23:24]} 35. Kd4 {[%clk 0:40:47]}  Ba4 {[%clk 0:20:00]} 36. Rb1 {[%clk 0:41:08]}  Nb3+ {[%clk 0:20:13]} 37. Kc3 {[%clk 0:41:25]}  Ke7 {[%clk 0:20:24]} 38. Rxb3 {[%clk 0:41:47]} 1-0


[Site "http://www.chessbomb.com"]